[Event "LTU-chT 2020"]
[Site "Vilnius"]
[Date "2020.09.25"]
[Round "3.1"]
[White "Juksta, Karolis"]
[Black "Laurusas, Tomas"]
[Result "1-0"]
[ECO "A50"]
[WhiteElo "2394"]
[BlackElo "2503"]
[Annotator "ChessBase"]
[PlyCount "53"]
[EventDate "2020.09.25"]
[EventType "team-tourn"]
[EventCountry "LTU"]
[SourceTitle "playchess.com"]
[Source "ChessBase"]
[SourceQuality "1"]
[TimeControl "40/5400+30:1800+30"]

1. d4 {[%emt 0:00:00]} Nf6 {[%emt 0:00:00]} 2. c4 {[%emt 0:00:00]} c6 {[%emt 0:00:00]} 3. Nc3 {[%emt 0:00:57]} d5 {[%emt 0:00:04]} 4. cxd5 {[%emt 0:00:50]} cxd5 {[%emt 0:00:09]} 5. Bf4 {[%emt 0:00:15]} Nc6 {[%emt 0:00:07]} 6. e3 {[%emt 0:00:22]} Bf5 {[%emt 0:00:05]} 7. Nf3 {[%emt 0:08:59]} e6 {[%emt 0:00:43]} 8. Qb3 {[%emt 0:06:37]} Qb6 {[%emt 0:00:47]} 9. Qxb6 {[%emt 0:00:10]} axb6 {[%emt 0:00:07]} 10. a3 {[%emt 0:01:02]} Be7 {[%emt 0:00:54]} 11. Bb5 {[%emt 0:01:10]} O-O {[%emt 0:00:50]} 12. O-O {[%emt 0:11:04]} Rfc8 {[%emt 0:05:05]} 13. h3 {[%emt 0:02:56]} h6 {[%emt 0:02:32]} 14. Rac1 {[%emt 0:03:41]} g5 {[%emt 0:10:50]} 15. Bg3 {[%emt 0:05:24]} Ra5 {[%emt 0:03:49]} 16. Be2 {[%emt 0:03:22]} Ne4 {[%emt 0:05:06]} 17. Nxe4 {[%emt 0:01:34]} Bxe4 {[%emt 0:00:27]} 18. Rc3 {[%emt 0:14:31]} f6 {[%emt 0:02:53]} 19. Rfc1 {[%emt 0:01:22]} Rca8 {[%emt 0:00:39]} 20. Bc7 {[%emt 0:02:44]} Bd8 {[%emt 0:00:08]} 21. Bxd8 {[%emt 0:01:16]} Rxd8 {[%emt 0:00:10]} 22. Rb3 {[%emt 0:01:01]} Bxf3 {[%emt 0:07:35]} 23. gxf3 {[%emt 0:03:09]} b5 {[%emt 0:07:41]} 24. Bxb5 {[%emt 0:02:36]} Na7 {[%emt 0:00:12]} 25. Bd3 {[%emt 0:01:02]} Rd7 {[%emt 0:00:10]} 26. Rb6 {[%emt 0:00:19]} Kf7 {[%emt 0:00:11]} 27. Rc3 {[%emt 0:00:16]} 1-0

[Event "LTU-chT 2020"]
[Site "Vilnius"]
[Date "2020.09.25"]
[Round "3.2"]
[White "Pultinevicius, Paulius"]
[Black "Stremavicius, Pijus"]
[Result "1-0"]
[ECO "A41"]
[WhiteElo "2510"]
[BlackElo "2189"]
[Annotator "ChessBase"]
[PlyCount "59"]
[EventDate "2020.09.25"]
[EventType "team-tourn"]
[EventCountry "LTU"]
[SourceTitle "playchess.com"]
[Source "ChessBase"]
[SourceQuality "1"]
[TimeControl "40/5400+30:1800+30"]

1. Nf3 {[%emt 0:00:00]} d6 {[%emt 0:00:00]} 2. d4 {[%emt 0:00:00]} Bg4 {[%emt 0:00:07]} 3. Nbd2 {[%emt 0:00:00]} Nf6 {[%emt 0:00:54]} 4. c4 {[%emt 0:00:02]} Nbd7 {[%emt 0:00:14]} 5. h3 {[%emt 0:00:29]} Bh5 {[%emt 0:00:05]} 6. Qb3 {[%emt 0:00:19]} Qc8 {[%emt 0:00:56]} 7. g4 {[%emt 0:00:07]} Bg6 {[%emt 0:00:06]} 8. Bg2 {[%emt 0:00:13]} c6 {[%emt 0:00:41]} 9. Nh4 {[%emt 0:01:43]} e5 {[%emt 0:00:25]} 10. e3 {[%emt 0:09:18]} Be7 {[%emt 0:01:42]} 11. O-O {[%emt 0:02:57]} Qc7 {[%emt 0:05:18]} 12. f4 {[%emt 0:03:04]} Ne4 {[%emt 0:03:24]} 13. Bxe4 {[%emt 0:03:53]} Bxe4 {[%emt 0:01:23]} 14. Nxe4 {[%emt 0:00:16]} Bxh4 {[%emt 0:00:43]} 15. Qxb7 {[%emt 0:10:21]} Qxb7 {[%emt 0:00:11]} 16. Nxd6+ {[%emt 0:00:05]} Kd8 {[%emt 0:00:11]} 17. Nxb7+ {[%emt 0:00:06]} Kc7 {[%emt 0:00:03]} 18. fxe5 {[%emt 0:08:56]} Kxb7 {[%emt 0:00:49]} 19. Rxf7 {[%emt 0:00:02]} Kc8 {[%emt 0:06:03]} 20. Bd2 {[%emt 0:00:35]} Rg8 {[%emt 0:01:51]} 21. Raf1 {[%emt 0:04:04]} Kd8 {[%emt 0:01:19]} 22. e4 {[%emt 0:03:36]} Ke8 {[%emt 0:01:46]} 23. e6 {[%emt 0:05:21]} Nf6 {[%emt 0:00:31]} 24. Bb4 {[%emt 0:00:14]} Rb8 {[%emt 0:00:54]} 25. Ba3 {[%emt 0:00:35]} c5 {[%emt 0:00:09]} 26. Bxc5 {[%emt 0:00:14]} Rxb2 {[%emt 0:00:11]} 27. Rxa7 {[%emt 0:00:50]} Bg3 {[%emt 0:00:48]} 28. e5 {[%emt 0:00:30]} Bh2+ {[%emt 0:00:06]} 29. Kh1 {[%emt 0:00:05]} Ne4 {[%emt 0:00:04]} 30. Ra8+ {[%emt 0:00:04]} 1-0

[Event "LTU-chT 2020"]
[Site "Vilnius"]
[Date "2020.09.25"]
[Round "3.3"]
[White "Butvilas, Aistis"]
[Black "Krivonosov, Oleg"]
[Result "0-1"]
[ECO "D31"]
[WhiteElo "2057"]
[BlackElo "2381"]
[Annotator "NA"]
[PlyCount "100"]
[EventDate "2020.09.25"]
[EventType "team-tourn"]
[EventCountry "LTU"]
[SourceTitle "playchess.com"]
[Source "ChessBase"]
[SourceQuality "1"]
[TimeControl "40/5400+30:1800+30"]

1. d4 {[%emt 0:00:00]} d5 {[%emt 0:00:00]} 2. c4 {[%emt 0:00:00]} e6 {[%emt 0:00:00]} 3. Nc3 {[%emt 0:00:00]} Be7 {[%emt 0:00:00]} 4. cxd5 {[%emt 0:00:31]} exd5 {[%emt 0:00:00]} 5. Bf4 {[%emt 0:00:04]} c6 {[%emt 0:00:05]} 6. e3 {[%emt 0:00:19]} Bd6 {[%emt 0:00:13]} 7. Bxd6 {[%emt 0:00:12]} Qxd6 {[%emt 0:00:05]} 8. Bd3 {[%emt 0:00:08]} Nf6 {[%emt 0:01:19]} 9. Qc2 {[%emt 0:02:22]} O-O {[%emt 0:03:17]} 10. Nf3 {[%emt 0:00:28]} Nbd7 {[%emt 0:02:19]} 11. O-O {[%emt 0:01:18]} Re8 {[%emt 0:00:35]} 12. Rab1 {[%emt 0:01:06]} Nf8 {[%emt 0:05:09]} 13. b4 {[%emt 0:01:48]} Ng6 {[%emt 0:00:48]} 14. h3 {[%emt 0:09:51]} Bd7 {[%emt 0:01:28]} 15. b5 {[%emt 0:02:24]} c5 {[%emt 0:04:36]} 16. dxc5 {[%emt 0:01:28]} Qxc5 {[%emt 0:00:09]} 17. Ne4 {[%emt 0:06:24]} Nxe4 {[%emt 0:06:41]} 18. Bxe4 {[%emt 0:00:14]} Rac8 {[%emt 0:06:21]} 19. Qxc5 {[%emt 0:01:09]} Rxc5 {[%emt 0:00:07]} 20. Bxg6 {[%emt 0:02:54]} hxg6 {[%emt 0:00:14]} 21. Nd4 {[%emt 0:00:14]} Rec8 {[%emt 0:01:10]} 22. Rfd1 {[%emt 0:02:35]} Kf8 {[%emt 0:06:34]} 23. Kf1 {[%emt 0:02:52]} Ke7 {[%emt 0:01:32]} 24. Ke2 {[%emt 0:08:53]} Rc4 {[%emt 0:02:42]} 25. Rb2 {[%emt 0:04:52]} Ra4 {[%emt 0:02:22]} 26. Kd2 {[%emt 0:09:36]} Kd6 {[%emt 0:03:23]} 27. b6 {[%emt 0:13:11]} a6 {[%emt 0:01:55]} 28. Ra1 {[%emt 0:03:00]} Rac4 {[%emt 0:06:57]} 29. a3 {[%emt 0:04:16]} Ba4 {[%emt 0:01:45]} 30. h4 {[%emt 0:03:35]} Bd7 {[%emt 0:01:52]} 31. g3 {[%emt 0:01:14]} Ra4 {[%emt 0:02:40]} 32. Rb3 {[%emt 0:01:04]} Rc5 {[%emt 0:04:08]} 33. Rab1 {[%emt 0:05:28]} Rca5 {[%emt 0:04:54]} 34. Rc3 {[%emt 0:02:13]} Rc4 {[%emt 0:04:18]} 35. Rcb3 {[%emt 0:04:14]} Ba4 {[%emt 0:06:07]} 36. R3b2 {[%emt 0:01:15]} Bb5 {[%emt 0:01:17]} 37. Nxb5+ {[%emt 0:04:47]} axb5 {[%emt 0:00:11]} 38. Rxb5 {[%emt 0:00:04]} Rxa3 {[%emt 0:00:23]} 39. R1b2 {[%emt 0:00:36]} Kc6 {[%emt 0:02:15]} 40. Kd1 {[%emt 0:02:48]} d4 {[%emt 0:01:08]} 41. exd4 {[%emt 0:00:59]} Rxd4+ {[%emt 0:00:09]} 42. Ke2 {[%emt 0:00:46]} Ra2 {[%emt 0:01:23]} 43. Rxa2 {[%emt 0:03:05]} Kxb5 {[%emt 0:00:04]} 44. Ra8 {[%emt 0:00:12]} Rd7 {[%emt 0:00:22]} 45. Rg8 {[%emt 0:00:44]} f6 {[%emt 0:00:11]} 46. g4 {[%emt 0:00:06]} Kxb6 {[%emt 0:00:11]} 47. g5 {[%emt 0:00:17]} fxg5 {[%emt 0:00:41]} 48. hxg5 {[%emt 0:00:03]} Kc5 {[%emt 0:00:27]} 49. f4 {[%emt 0:01:34]} b5 {[%emt 0:00:14]} 50. Re8 {[%emt 0:00:17]} b4 {[%emt 0:00:30]} 0-1

[Event "LTU-chT 2020"]
[Site "Vilnius"]
[Date "2020.09.25"]
[Round "3.4"]
[White "Vedrickas, Tautvydas"]
[Black "Baliasnyj, Timur"]
[Result "1/2-1/2"]
[ECO "A49"]
[WhiteElo "2399"]
[BlackElo "2211"]
[Annotator "NA"]
[PlyCount "56"]
[EventDate "2020.09.25"]
[EventType "team-tourn"]
[EventCountry "LTU"]
[SourceTitle "playchess.com"]
[Source "ChessBase"]
[SourceQuality "1"]
[TimeControl "40/5400+30:1800+30"]

1. d4 {[%emt 0:00:00]} Nf6 {[%emt 0:00:00]} 2. Nf3 {[%emt 0:00:28]} g6 {[%emt 0:03:04]} 3. g3 {[%emt 0:00:19]} Bg7 {[%emt 0:00:07]} 4. Bg2 {[%emt 0:00:05]} O-O {[%emt 0:00:05]} 5. O-O {[%emt 0:00:05]} c5 {[%emt 0:00:42]} 6. c3 {[%emt 0:01:17]} Qb6 {[%emt 0:04:09]} 7. b3 {[%emt 0:20:08]} d6 {[%emt 0:08:48]} 8. Bb2 {[%emt 0:06:07]} a5 {[%emt 0:06:06]} 9. Na3 {[%emt 0:02:27]} a4 {[%emt 0:02:43]} 10. Nd2 {[%emt 0:05:51]} cxd4 {[%emt 0:16:02]} 11. Ndc4 {[%emt 0:06:57]} Qa6 {[%emt 0:01:15]} 12. cxd4 {[%emt 0:00:49]} d5 {[%emt 0:03:36]} 13. Ne5 {[%emt 0:02:20]} Qb6 {[%emt 0:01:26]} 14. Nd3 {[%emt 0:09:02]} Bf5 {[%emt 0:08:23]} 15. bxa4 {[%emt 0:12:30]} Bxd3 {[%emt 0:16:50]} 16. Qxd3 {[%emt 0:00:08]} Rxa4 {[%emt 0:00:07]} 17. Rfb1 {[%emt 0:09:39]} Nc6 {[%emt 0:01:33]} 18. e3 {[%emt 0:01:08]} Rc8 {[%emt 0:03:03]} 19. Bc1 {[%emt 0:00:53]} Qa6 {[%emt 0:02:36]} 20. Qb3 {[%emt 0:04:01]} Rb4 {[%emt 0:01:26]} 21. Qc2 {[%emt 0:01:03]} Rxb1 {[%emt 0:06:01]} 22. Rxb1 {[%emt 0:00:37]} e6 {[%emt 0:00:32]} 23. Nb5 {[%emt 0:04:24]} Na7 {[%emt 0:01:24]} 24. Nc3 {[%emt 0:04:53]} Nb5 {[%emt 0:04:11]} 25. Bf1 {[%emt 0:00:51]} Rxc3 {[%emt 0:00:23]} 26. Qb2 {[%emt 0:00:18]} Qc6 {[%emt 0:03:37]} 27. Bxb5 {[%emt 0:00:23]} Qc7 {[%emt 0:00:06]} 28. Ba4 {[%emt 0:03:10]} Ne4 {[%emt 0:02:50]} 1/2-1/2

[Event "LTU-chT 2020"]
[Site "Vilnius"]
[Date "2020.09.25"]
[Round "3.5"]
[White "Pluta, Paulius"]
[Black "Sakalauskas, Vaidas"]
[Result "0-1"]
[ECO "B22"]
[WhiteElo "1796"]
[BlackElo "2331"]
[Annotator "NA"]
[PlyCount "72"]
[EventDate "2020.09.25"]
[EventType "team-tourn"]
[EventCountry "LTU"]
[SourceTitle "playchess.com"]
[Source "ChessBase"]
[SourceQuality "1"]
[TimeControl "40/5400+30:1800+30"]

1. e4 {[%emt 0:00:00]} c5 {[%emt 0:01:19]} 2. c3 {[%emt 0:00:00]} d5 {[%emt 0:01:08]} 3. exd5 {[%emt 0:00:00]} Qxd5 {[%emt 0:00:07]} 4. d4 {[%emt 0:00:00]} g6 {[%emt 0:02:02]} 5. Nf3 {[%emt 0:03:08]} Nf6 {[%emt 0:00:38]} 6. Na3 {[%emt 0:04:49]} cxd4 {[%emt 0:03:55]} 7. Nb5 {[%emt 0:07:52]} Na6 {[%emt 0:00:56]} 8. Qxd4 {[%emt 0:05:13]} Bg7 {[%emt 0:01:15]} 9. Bc4 {[%emt 0:00:41]} Qxd4 {[%emt 0:01:52]} 10. Nfxd4 {[%emt 0:00:17]} O-O {[%emt 0:00:31]} 11. Be3 {[%emt 0:00:16]} Bd7 {[%emt 0:09:10]} 12. Nf3 {[%emt 0:03:12]} Rfc8 {[%emt 0:03:09]} 13. Be2 {[%emt 0:06:42]} Nc5 {[%emt 0:03:23]} 14. Ne5 {[%emt 0:06:56]} Be6 {[%emt 0:01:20]} 15. Nd4 {[%emt 0:11:58]} Bd5 {[%emt 0:00:51]} 16. O-O {[%emt 0:00:09]} Ne8 {[%emt 0:04:23]} 17. Nd3 {[%emt 0:06:50]} Nxd3 {[%emt 0:05:29]} 18. Bxd3 {[%emt 0:00:07]} Nd6 {[%emt 0:00:22]} 19. Nb5 {[%emt 0:15:00]} Nxb5 {[%emt 0:05:00]} 20. Bxb5 {[%emt 0:00:08]} a6 {[%emt 0:00:14]} 21. Rfd1 {[%emt 0:08:38]} e6 {[%emt 0:01:20]} 22. Ba4 {[%emt 0:00:23]} b5 {[%emt 0:01:17]} 23. Bb3 {[%emt 0:00:09]} Bc4 {[%emt 0:02:51]} 24. Bb6 {[%emt 0:07:06]} a5 {[%emt 0:01:33]} 25. Rd7 {[%emt 0:02:39]} b4 {[%emt 0:03:03]} 26. Bd4 {[%emt 0:07:30]} Bxd4 {[%emt 0:03:08]} 27. Rxd4 {[%emt 0:00:45]} Bxb3 {[%emt 0:00:15]} 28. axb3 {[%emt 0:00:07]} bxc3 {[%emt 0:00:02]} 29. bxc3 {[%emt 0:00:06]} Rxc3 {[%emt 0:00:03]} 30. b4 {[%emt 0:00:07]} a4 {[%emt 0:00:20]} 31. g3 {[%emt 0:00:40]} Rb3 {[%emt 0:00:41]} 32. h4 {[%emt 0:00:46]} a3 {[%emt 0:00:22]} 33. Kg2 {[%emt 0:00:35]} Rb2 {[%emt 0:00:12]} 34. b5 {[%emt 0:02:24]} a2 {[%emt 0:01:46]} 35. b6 {[%emt 0:01:43]} Rxb6 {[%emt 0:00:51]} 36. Rd2 {[%emt 0:00:30]} Rba6 {[%emt 0:00:10]} 0-1

[Event "LTU-chT 2020"]
[Site "Vilnius"]
[Date "2020.09.25"]
[Round "3.6"]
[White "Chocenka, Dmitrijus"]
[Black "Malisauskas, Vidmantas"]
[Result "0-1"]
[ECO "B66"]
[WhiteElo "2333"]
[BlackElo "2409"]
[Annotator "NA"]
[PlyCount "104"]
[EventDate "2020.09.25"]
[EventType "team-tourn"]
[EventCountry "LTU"]
[SourceTitle "playchess.com"]
[Source "ChessBase"]
[SourceQuality "1"]
[TimeControl "40/5400+30:1800+30"]

1. e4 {[%emt 0:00:00]} c5 {[%emt 0:03:10]} 2. Nf3 {[%emt 0:00:07]} d6 {[%emt 0:00:07]} 3. d4 {[%emt 0:00:04]} cxd4 {[%emt 0:00:09]} 4. Nxd4 {[%emt 0:00:03]} Nf6 {[%emt 0:00:12]} 5. Nc3 {[%emt 0:00:05]} Nc6 {[%emt 0:00:08]} 6. Bg5 {[%emt 0:00:48]} e6 {[%emt 0:00:08]} 7. Qd2 {[%emt 0:00:38]} a6 {[%emt 0:01:30]} 8. O-O-O {[%emt 0:00:30]} h6 {[%emt 0:02:51]} 9. Bh4 {[%emt 0:03:37]} Bd7 {[%emt 0:08:34]} 10. Bg3 {[%emt 0:02:07]} Nxd4 {[%emt 0:02:39]} 11. Qxd4 {[%emt 0:01:18]} e5 {[%emt 0:00:06]} 12. Qd3 {[%emt 0:01:40]} Rc8 {[%emt 0:00:23]} 13. Kb1 {[%emt 0:03:27]} Qa5 {[%emt 0:08:08]} 14. f3 {[%emt 0:07:19]} Be6 {[%emt 0:00:51]} 15. a3 {[%emt 0:06:59]} Be7 {[%emt 0:00:10]} 16. Nd5 {[%emt 0:07:02]} Bxd5 {[%emt 0:05:59]} 17. exd5 {[%emt 0:00:18]} O-O {[%emt 0:00:38]} 18. c4 {[%emt 0:01:26]} b5 {[%emt 0:02:42]} 19. cxb5 {[%emt 0:00:17]} axb5 {[%emt 0:00:07]} 20. Qxb5 {[%emt 0:00:17]} Qa7 {[%emt 0:01:57]} 21. Bc4 {[%emt 0:08:03]} Ra8 {[%emt 0:00:19]} 22. Bb3 {[%emt 0:06:20]} Rfb8 {[%emt 0:00:23]} 23. Qc4 {[%emt 0:01:24]} Nd7 {[%emt 0:00:17]} 24. Rd3 {[%emt 0:00:33]} Bf6 {[%emt 0:05:06]} 25. Qe4 {[%emt 0:05:30]} Nc5 {[%emt 0:06:49]} 26. Bf2 {[%emt 0:00:13]} Nxe4 {[%emt 0:00:08]} 27. Bxa7 {[%emt 0:00:02]} Rxb3 {[%emt 0:00:14]} 28. Rxb3 {[%emt 0:00:13]} Nd2+ {[%emt 0:00:08]} 29. Ka2 {[%emt 0:00:08]} Nxb3 {[%emt 0:00:09]} 30. Kxb3 {[%emt 0:00:05]} Rxa7 {[%emt 0:00:09]} 31. Ka2 {[%emt 0:00:32]} Bg5 {[%emt 0:00:38]} 32. b4 {[%emt 0:00:09]} Kf8 {[%emt 0:00:17]} 33. Kb3 {[%emt 0:00:05]} Ke7 {[%emt 0:00:15]} 34. Re1 {[%emt 0:00:05]} Kd7 {[%emt 0:00:23]} 35. Re4 {[%emt 0:00:06]} f5 {[%emt 0:00:10]} 36. Re2 {[%emt 0:00:14]} Bd8 {[%emt 0:01:11]} 37. a4 {[%emt 0:00:06]} g5 {[%emt 0:00:57]} 38. Ra2 {[%emt 0:00:17]} Kc8 {[%emt 0:01:41]} 39. a5 {[%emt 0:00:06]} e4 {[%emt 0:00:13]} 40. fxe4 {[%emt 0:00:10]} fxe4 {[%emt 0:00:08]} 41. Re2 {[%emt 0:30:25]} Re7 {[%emt 0:30:10]} 42. Kc4 {[%emt 0:00:13]} Re8 {[%emt 0:00:31]} 43. Kb5 {[%emt 0:00:12]} Kb7 {[%emt 0:00:32]} 44. a6+ {[%emt 0:00:05]} Ka7 {[%emt 0:00:24]} 45. Kc6 {[%emt 0:00:04]} Bb6 {[%emt 0:00:35]} 46. Kd7 {[%emt 0:00:50]} Rd8+ {[%emt 0:00:10]} 47. Ke7 {[%emt 0:01:13]} e3 {[%emt 0:00:12]} 48. b5 {[%emt 0:00:19]} Rc8 {[%emt 0:00:27]} 49. Kxd6 {[%emt 0:00:06]} Rf8 {[%emt 0:00:10]} 50. Kc6 {[%emt 0:01:25]} Rf2 {[%emt 0:00:14]} 51. Re1 {[%emt 0:00:07]} Rc2+ {[%emt 0:00:07]} 52. Kd6 {[%emt 0:00:06]} e2 {[%emt 0:00:07]} 0-1

[Event "LTU-chT 2020"]
[Site "Vilnius"]
[Date "2020.09.25"]
[Round "3.7"]
[White "Maziukas, Kasparas"]
[Black "Limontas, Martynas"]
[Result "0-1"]
[ECO "E00"]
[WhiteElo "1920"]
[BlackElo "2301"]
[Annotator "NA"]
[PlyCount "46"]
[EventDate "2020.09.25"]
[EventType "team-tourn"]
[EventCountry "LTU"]
[SourceTitle "playchess.com"]
[Source "ChessBase"]
[SourceQuality "1"]
[TimeControl "40/5400+30:1800+30"]

1. d4 {[%emt 0:00:00]} Nf6 {[%emt 0:00:00]} 2. c4 {[%emt 0:00:00]} e6 {[%emt 0:00:00]} 3. Nc3 {[%emt 0:00:12]} c5 {[%emt 0:00:13]} 4. d5 {[%emt 0:00:20]} exd5 {[%emt 0:00:07]} 5. cxd5 {[%emt 0:00:06]} Bd6 {[%emt 0:00:10]} 6. Nf3 {[%emt 0:02:07]} O-O {[%emt 0:00:41]} 7. g3 {[%emt 0:01:22]} Re8 {[%emt 0:01:33]} 8. Bg2 {[%emt 0:02:12]} Bc7 {[%emt 0:02:49]} 9. O-O {[%emt 0:00:34]} d6 {[%emt 0:00:23]} 10. Nd2 {[%emt 0:07:52]} a6 {[%emt 0:02:11]} 11. a4 {[%emt 0:00:11]} Nbd7 {[%emt 0:01:40]} 12. e4 {[%emt 0:06:36]} Rb8 {[%emt 0:01:31]} 13. Re1 {[%emt 0:22:12]} b5 {[%emt 0:03:02]} 14. axb5 {[%emt 0:00:04]} axb5 {[%emt 0:00:02]} 15. Qc2 {[%emt 0:05:35]} c4 {[%emt 0:04:38]} 16. b4 {[%emt 0:01:27]} Ne5 {[%emt 0:03:19]} 17. Bf1 {[%emt 0:05:13]} Bb6 {[%emt 0:01:57]} 18. h3 {[%emt 0:03:21]} Nh5 {[%emt 0:12:59]} 19. Nd1 {[%emt 0:26:14]} Nxg3 {[%emt 0:02:08]} 20. Qc3 {[%emt 0:00:05]} Nxf1 {[%emt 0:03:49]} 21. Nxf1 {[%emt 0:00:17]} Bd4 {[%emt 0:00:16]} 22. Qg3 {[%emt 0:00:54]} Bxa1 {[%emt 0:00:44]} 23. Bh6 {[%emt 0:02:15]} Qf6 {[%emt 0:00:32]} 0-1

[Event "LTU-chT 2020"]
[Site "Vilnius"]
[Date "2020.09.25"]
[Round "3.8"]
[White "Mickevicius, Juras"]
[Black "Likatavicius, Rapolas"]
[Result "1-0"]
[ECO "D30"]
[WhiteElo "2277"]
[BlackElo "1946"]
[Annotator "NA"]
[PlyCount "77"]
[EventDate "2020.09.25"]
[EventType "team-tourn"]
[EventCountry "LTU"]
[SourceTitle "playchess.com"]
[Source "ChessBase"]
[SourceQuality "1"]
[TimeControl "40/5400+30:1800+30"]

1. d4 {[%emt 0:00:00]} d5 {[%emt 0:00:00]} 2. c4 {[%emt 0:00:00]} e6 {[%emt 0:00:00]} 3. Nf3 {[%emt 0:00:01]} Nf6 {[%emt 0:00:01]} 4. g3 {[%emt 0:00:03]} Bb4+ {[%emt 0:00:13]} 5. Bd2 {[%emt 0:00:03]} Be7 {[%emt 0:00:10]} 6. Bg2 {[%emt 0:00:06]} O-O {[%emt 0:00:10]} 7. O-O {[%emt 0:00:03]} c6 {[%emt 0:00:10]} 8. Qc2 {[%emt 0:00:05]} b6 {[%emt 0:01:26]} 9. Bf4 {[%emt 0:00:36]} Nh5 {[%emt 0:00:26]} 10. Bc1 {[%emt 0:00:26]} Nf6 {[%emt 0:00:34]} 11. Nbd2 {[%emt 0:02:26]} Bb7 {[%emt 0:03:21]} 12. e4 {[%emt 0:01:09]} dxe4 {[%emt 0:01:12]} 13. Nxe4 {[%emt 0:00:04]} c5 {[%emt 0:03:20]} 14. Nxf6+ {[%emt 0:01:36]} Bxf6 {[%emt 0:00:08]} 15. Ng5 {[%emt 0:00:13]} Bxg5 {[%emt 0:00:58]} 16. Bxb7 {[%emt 0:00:04]} Bxc1 {[%emt 0:00:21]} 17. Raxc1 {[%emt 0:01:48]} Nd7 {[%emt 0:00:23]} 18. Bxa8 {[%emt 0:00:06]} Qxa8 {[%emt 0:00:01]} 19. Rfd1 {[%emt 0:00:28]} Nf6 {[%emt 0:04:04]} 20. Qe2 {[%emt 0:01:47]} h5 {[%emt 0:03:43]} 21. h3 {[%emt 0:03:00]} h4 {[%emt 0:06:59]} 22. gxh4 {[%emt 0:00:41]} g6 {[%emt 0:03:27]} 23. Qe3 {[%emt 0:05:56]} Kg7 {[%emt 0:17:21]} 24. Rd3 {[%emt 0:18:17]} Rh8 {[%emt 0:09:41]} 25. dxc5 {[%emt 0:09:55]} Rxh4 {[%emt 0:06:05]} 26. Qf3 {[%emt 0:05:57]} Qc8 {[%emt 0:03:20]} 27. c6 {[%emt 0:05:20]} e5 {[%emt 0:05:15]} 28. Qg3 {[%emt 0:09:24]} Rf4 {[%emt 0:07:44]} 29. Qg2 {[%emt 0:01:53]} e4 {[%emt 0:04:07]} 30. Rd6 {[%emt 0:01:02]} Rf3 {[%emt 0:01:48]} 31. c5 {[%emt 0:05:27]} bxc5 {[%emt 0:11:38]} 32. Rxc5 {[%emt 0:00:07]} Qc7 {[%emt 0:02:04]} 33. Rxf6 {[%emt 0:01:42]} Rxf6 {[%emt 0:02:56]} 34. Qxe4 {[%emt 0:00:09]} Qd6 {[%emt 0:01:43]} 35. Qe3 {[%emt 0:01:08]} Re6 {[%emt 0:01:47]} 36. Qc3+ {[%emt 0:00:06]} Kh7 {[%emt 0:00:07]} 37. c7 {[%emt 0:01:00]} Qd1+ {[%emt 0:00:51]} 38. Kg2 {[%emt 0:00:05]} Re1 {[%emt 0:00:26]} 39. Qxe1 {[%emt 0:00:19]} 1-0

[Event "LTU-chT 2020"]
[Site "Vilnius"]
[Date "2020.09.25"]
[Round "3.9"]
[White "Dailidenas, Justas"]
[Black "Viskelis, Darius"]
[Result "0-1"]
[ECO "D32"]
[WhiteElo "1720"]
[BlackElo "2226"]
[Annotator "NA"]
[PlyCount "84"]
[EventDate "2020.09.25"]
[EventType "team-tourn"]
[EventCountry "LTU"]
[SourceTitle "playchess.com"]
[Source "ChessBase"]
[SourceQuality "1"]
[TimeControl "40/5400+30:1800+30"]

1. d4 {[%emt 0:00:00]} d5 {[%emt 0:00:07]} 2. c4 {[%emt 0:00:20]} e6 {[%emt 0:00:07]} 3. Nc3 {[%emt 0:00:50]} c5 {[%emt 0:01:26]} 4. cxd5 {[%emt 0:01:04]} cxd4 {[%emt 0:01:22]} 5. Qxd4 {[%emt 0:02:06]} Nc6 {[%emt 0:00:06]} 6. Qd1 {[%emt 0:03:57]} exd5 {[%emt 0:00:05]} 7. e3 {[%emt 0:09:38]} Nf6 {[%emt 0:01:07]} 8. Nf3 {[%emt 0:02:08]} a6 {[%emt 0:02:32]} 9. a3 {[%emt 0:02:24]} Bd6 {[%emt 0:00:23]} 10. Be2 {[%emt 0:00:28]} O-O {[%emt 0:00:10]} 11. O-O {[%emt 0:00:03]} Be6 {[%emt 0:01:58]} 12. b4 {[%emt 0:02:26]} Rc8 {[%emt 0:02:58]} 13. Bb2 {[%emt 0:01:46]} Bb8 {[%emt 0:01:19]} 14. Na4 {[%emt 0:06:39]} Ne4 {[%emt 0:01:59]} 15. Rc1 {[%emt 0:15:15]} f6 {[%emt 0:03:04]} 16. Nd4 {[%emt 0:03:00]} Qd6 {[%emt 0:03:07]} 17. g3 {[%emt 0:02:13]} Bh3 {[%emt 0:02:30]} 18. Re1 {[%emt 0:00:25]} Ne5 {[%emt 0:00:46]} 19. Nb3 {[%emt 0:06:43]} Rxc1 {[%emt 0:05:49]} 20. Nxc1 {[%emt 0:00:26]} Nc4 {[%emt 0:14:13]} 21. Bxc4 {[%emt 0:08:00]} dxc4 {[%emt 0:00:54]} 22. Qxd6 {[%emt 0:00:01]} Bxd6 {[%emt 0:00:22]} 23. f3 {[%emt 0:05:24]} Nd2 {[%emt 0:15:09]} 24. Kf2 {[%emt 0:00:25]} Be5 {[%emt 0:02:29]} 25. Ne2 {[%emt 0:06:14]} b5 {[%emt 0:09:49]} 26. Bc3 {[%emt 0:06:35]} Nb3 {[%emt 0:06:16]} 27. Bxe5 {[%emt 0:00:13]} fxe5 {[%emt 0:00:27]} 28. Nac3 {[%emt 0:00:01]} Bg4 {[%emt 0:04:03]} 29. f4 {[%emt 0:00:29]} Rd8 {[%emt 0:04:46]} 30. Rd1 {[%emt 0:00:44]} Nd2 {[%emt 0:00:23]} 31. Ra1 {[%emt 0:02:41]} Rd3 {[%emt 0:03:34]} 32. fxe5 {[%emt 0:01:01]} Nb3 {[%emt 0:01:50]} 33. Ra2 {[%emt 0:01:40]} Nc1 {[%emt 0:02:18]} 34. Nxc1 {[%emt 0:02:01]} Rxc3 {[%emt 0:00:02]} 35. Ne2 {[%emt 0:00:00]} Rb3 {[%emt 0:00:21]} 36. Nd4 {[%emt 0:00:46]} Rb1 {[%emt 0:00:26]} 37. a4 {[%emt 0:01:29]} bxa4 {[%emt 0:06:32]} 38. Rxa4 {[%emt 0:00:30]} c3 {[%emt 0:00:09]} 39. Rxa6 {[%emt 0:00:56]} c2 {[%emt 0:00:28]} 40. e6 {[%emt 0:03:28]} Rf1+ {[%emt 0:00:12]} 41. Kxf1 {[%emt 0:30:07]} c1=Q+ {[%emt 0:30:09]} 42. Kg2 {[%emt 0:02:28]} Bh3+ {[%emt 0:01:44]} 0-1